bitfinex-derivatives/quotes_BTCF0:USTF0_20260207
["timestamp","ask_amount","ask_price","bid_price","bid_amount"]
[1770481725776,0.005,69454.0,69420.0,0.14552583]
[1770481725777,0.005,69454.0,69423.0,0.50115316]
[1770481726081,0.06364,69482.0,69425.0,0.50115316]
[1770481726082,0.005,69466.0,69425.0,0.50115316]
[1770481726678,0.005,69466.0,69426.0,0.5176385]
[1770481726872,0.005,69466.0,69427.0,0.71764722]
[1770481727084,0.42890104,69479.0,69428.0,0.71764722]
[1770481727085,0.005,69476.0,69428.0,0.71764722]
[1770481727274,0.005,69476.0,69429.0,0.50322036]
[1770481727474,0.005,69476.0,69429.0,0.2867263]
[1770481728190,0.005,69476.0,69428.0,0.2867263]
[1770481728590,0.005,69468.0,69428.0,0.2867263]
[1770481728988,0.00491868,69468.0,69428.0,0.2867263]
[1770481729185,0.42890104,69483.0,69429.0,0.50320986]
[1770481729389,0.00491868,69477.0,69430.0,0.50320749]
[1770481729587,0.00491868,69477.0,69429.0,0.001]
[1770481729787,0.14552583,69480.0,69429.0,0.001]
[1770481729788,0.42890104,69463.0,69429.0,0.001]
[1770481729987,0.42890104,69463.0,69401.0,0.21574039]
[1770481730193,0.00491868,69451.0,69428.0,0.001]
[1770481730492,0.00491868,69464.0,69428.0,0.001]
[1770481730890,0.00491868,69441.0,69400.0,0.36126622]
[1770481731084,0.00491868,69441.0,69401.0,0.21656515]
[1770481731285,0.00491868,69441.0,69402.0,0.21656515]
[1770481731595,0.00491868,69441.0,69395.0,0.0002]
[1770481732483,0.00491868,69441.0,69393.0,0.28385828]
[1770481732682,0.00491868,69436.0,69393.0,0.28385828]
[1770481734696,0.00491868,69436.0,69394.0,0.21660088]
[1770481734996,0.00491868,69436.0,69395.0,0.21660088]
[1770481735196,0.00491868,69436.0,69396.0,0.21660088]
[1770481735502,0.00491868,69436.0,69398.0,0.21574039]
[1770481735694,0.00491868,69436.0,69399.0,0.21660088]
[1770481735894,0.00491868,69436.0,69394.0,0.014422]
[1770481735895,0.00491868,69436.0,69400.0,0.21660088]
[1770481736094,0.00491868,69436.0,69395.0,0.21574039]
[1770481736399,0.00491868,69436.0,69396.0,0.21657106]
[1770481736594,0.00491868,69436.0,69397.0,0.21657106]
[1770481736798,0.00491868,69436.0,69398.0,0.21657106]
[1770481736998,0.00491868,69436.0,69399.0,0.21657106]
[1770481737302,0.00491868,69436.0,69400.0,0.001]
[1770481738703,0.00491868,69436.0,69393.0,0.49959867]
[1770481738900,0.00491868,69436.0,69399.0,0.001]
[1770481739402,0.00491868,69436.0,69393.0,0.28405828]
[1770481739600,0.00491868,69436.0,69400.0,0.001]
[1770481739789,0.00491868,69453.0,69401.0,0.21657919]
[1770481740103,0.00491868,69453.0,69404.0,0.0002]
[1770481740305,0.00491868,69453.0,69405.0,0.43231958]
[1770481740495,0.00491868,69453.0,69407.0,0.21574039]
[1770481740694,0.00491868,69453.0,69408.0,0.21657919]
[1770481740900,0.00491868,69453.0,69409.0,0.21657919]
[1770481741099,0.00491868,69458.0,69410.0,0.21657919]
[1770481741294,0.00491868,69458.0,69411.0,0.21657919]
[1770481741495,0.00491868,69458.0,69404.0,0.21594039]
[1770481741695,0.00491868,69458.0,69405.0,0.21654686]
[1770481741900,0.00491868,69458.0,69409.0,0.21574039]
[1770481742200,0.00491868,69458.0,69410.0,0.57781308]
[1770481742398,0.00491868,69458.0,69414.0,0.014418]
[1770481742601,0.42890104,69471.0,69416.0,0.014418]
[1770481742999,0.42890104,69472.0,69416.0,0.014418]
[1770481743390,0.42890104,69474.0,69416.0,0.014418]
[1770481745601,0.42890104,69476.0,69416.0,0.014418]
[1770481745803,0.42890104,69474.0,69410.0,0.14552583]
[1770481746306,0.42890104,69469.0,69410.0,0.14552583]
[1770481749501,0.42890104,69468.0,69410.0,0.14552583]
[1770481750203,0.42890104,69469.0,69410.0,0.14552583]
[1770481750711,0.42890104,69468.0,69411.0,0.014419]
[1770481751005,0.42890104,69473.0,69411.0,0.014419]
[1770481751398,0.42890104,69472.0,69411.0,0.014419]
[1770481752606,0.42890104,69471.0,69411.0,0.014419]
[1770481753409,0.42890104,69472.0,69411.0,0.014419]
[1770481755514,0.42890104,69471.0,69411.0,0.014419]
[1770481755810,0.42890104,69472.0,69411.0,0.014419]
[1770481756206,0.42890104,69466.0,69410.0,0.14552583]
[1770481757112,0.42890104,69467.0,69410.0,0.14552583]
[1770481757706,0.42890104,69467.0,69404.0,0.21574039]
[1770481757908,0.42890104,69466.0,69404.0,0.21574039]
[1770481758107,0.42890104,69466.0,69402.0,0.014421]
[1770481758312,0.42890104,69462.0,69402.0,0.014421]
[1770481758714,0.42890104,69461.0,69402.0,0.014421]
[1770481759112,0.42890104,69462.0,69402.0,0.014421]
[1770481759514,0.42890104,69461.0,69404.0,0.17251533]
[1770481760309,0.42890104,69461.0,69405.0,0.17251533]
[1770481760815,0.42890104,69461.0,69402.0,0.17251533]
[1770481761017,0.42890104,69457.0,69401.0,0.17251533]
[1770481761216,0.42890104,69457.0,69400.0,0.17251533]
[1770481761416,0.42890104,69458.0,69400.0,0.17251533]
[1770481761820,0.42890104,69457.0,69399.0,0.17251533]
[1770481762113,0.42890104,69457.0,69400.0,0.17251533]
[1770481762624,0.42890104,69459.0,69400.0,0.17251533]
[1770481763414,0.42890104,69458.0,69400.0,0.17251533]
[1770481763820,0.42890104,69459.0,69400.0,0.17251533]
[1770481764222,0.42890104,69459.0,69401.0,0.17251533]
[1770481764625,0.42890104,69460.0,69401.0,0.17251533]
[1770481764919,0.001,69458.0,69401.0,0.17251533]
[1770481765330,0.001,69458.0,69408.0,0.0002]
[1770481765524,0.001,69459.0,69408.0,0.0002]
[1770481766238,0.42890104,69456.0,69408.0,0.0002]
[1770481766415,0.42890104,69456.0,69397.0,0.17251533]
[1770481767125,0.42890104,69457.0,69398.0,0.17251533]
[1770481767516,0.42890104,69456.0,69398.0,0.17251533]
[1770481767925,0.42890104,69455.0,69397.0,0.17251533]
[1770481768625,0.42890104,69455.0,69396.0,0.17251533]
[1770481768828,0.42890104,69454.0,69396.0,0.17251533]
[1770481769120,0.42890104,69454.0,69393.0,0.51402167]
[1770481769121,0.42890104,69454.0,69395.0,0.17251533]
[1770481770317,0.42890104,69455.0,69395.0,0.17251533]
[1770481770513,0.42890104,69455.0,69396.0,0.17251533]
[1770481770718,0.43381972,69456.0,69396.0,0.17251533]
[1770481770919,0.00491868,69450.0,69399.0,0.17251533]
[1770481771330,0.00491868,69450.0,69400.0,0.17251533]
[1770481771530,0.00491868,69450.0,69403.0,0.014421]
[1770481772027,0.00491868,69450.0,69403.0,0.18693633]
[1770481772527,0.00491868,69450.0,69408.0,0.17251533]
[1770481772828,0.00491868,69450.0,69409.0,0.38906152]
[1770481773021,0.00491868,69450.0,69409.0,0.17251533]
[1770481773424,0.00491868,69450.0,69411.0,0.17251533]
[1770481774723,0.00491868,69458.0,69411.0,0.17251533]
[1770481775629,0.00491868,69458.0,69416.0,0.17251533]
[1770481776427,0.00491868,69458.0,69411.0,0.17351533]
[1770481776833,0.00491868,69458.0,69411.0,0.001]
[1770481777236,0.00491868,69458.0,69411.0,0.17351533]
[1770481777532,0.00491868,69458.0,69412.0,0.38905271]
[1770481777732,0.00491868,69458.0,69412.0,0.17251533]
[1770481779436,0.00491868,69458.0,69414.0,0.17251533]
[1770481779638,0.00491868,69458.0,69415.0,0.38904261]
[1770481779840,0.00491868,69458.0,69414.0,0.17251533]
[1770481780737,0.00491868,69458.0,69413.0,0.17251533]
[1770481780938,0.00491868,69458.0,69415.0,0.001]
[1770481782333,0.00491868,69458.0,69409.0,0.38825572]
[1770481782534,0.00491868,69458.0,69414.0,0.001]
[1770481783141,0.00491868,69458.0,69410.0,0.17251533]
[1770481783738,0.00491868,69458.0,69410.0,0.38825572]
[1770481784432,0.00491868,69458.0,69414.0,0.001]
[1770481784633,0.00491868,69458.0,69415.0,0.014418]
[1770481784840,0.00491868,69458.0,69419.0,0.38825572]
[1770481785139,0.00491868,69458.0,69417.0,0.38825572]
[1770481786136,0.00491868,69441.0,69417.0,0.38825572]
[1770481786341,0.00491868,69441.0,69417.0,0.001]
[1770481786544,0.00491868,69457.0,69417.0,0.001]
[1770481788539,0.42890104,69454.0,69417.0,0.001]
[1770481788742,0.42890104,69454.0,69400.0,0.38825572]
[1770481788939,0.42890104,69452.0,69400.0,0.38825572]
[1770481789147,0.00491868,69451.0,69399.0,0.38825572]
[1770481789339,0.42890104,69449.0,69395.0,0.38825572]
[1770481789736,0.42890104,69447.0,69395.0,0.38825572]
[1770481790039,0.42890104,69447.0,69395.0,0.50352784]
[1770481790245,0.42890104,69449.0,69395.0,0.28778745]
[1770481790745,0.00491868,69447.0,69395.0,0.28778745]
[1770481790946,0.00491868,69447.0,69397.0,0.0002]
[1770481792147,0.00491868,69447.0,69393.0,0.28385828]
[1770481792148,0.42890104,69445.0,69393.0,0.28385828]
[1770481792441,0.42890104,69443.0,69393.0,0.28385828]
[1770481793434,0.42890104,69444.0,69393.0,0.28385828]
[1770481793844,0.42890104,69446.0,69393.0,0.28385828]
[1770481794246,0.42890104,69445.0,69393.0,0.28385828]
[1770481794638,0.42890104,69446.0,69393.0,0.28385828]
[1770481795450,0.43381972,69447.0,69393.0,0.28385828]
[1770481796950,0.00491868,69447.0,69393.0,0.57164573]
[1770481797647,0.00491868,69447.0,69401.0,0.0002]
[1770481798744,0.00491868,69447.0,69394.0,0.11527212]
[1770481799349,0.00491868,69447.0,69393.0,0.3991304]
[1770481799751,0.00491868,69447.0,69397.0,0.0002]
[1770481800152,0.42890104,69418.0,69397.0,0.00010811]
[1770481801848,0.42890104,69419.0,69397.0,0.00010811]
[1770481802354,0.42890104,69419.0,69397.0,0.00110811]
[1770481802557,0.42890104,69420.0,69397.0,0.00110811]
[1770481802957,0.55729465,69430.0,69398.0,0.014422]
[1770481803158,0.55729465,69444.0,69398.0,0.014422]
[1770481803857,0.69661831,69453.0,69398.0,0.014422]
[1770481803858,0.55729465,69448.0,69398.0,0.014422]
[1770481805559,0.55729465,69447.0,69398.0,0.014422]
[1770481806458,0.55729465,69448.0,69398.0,0.014422]
[1770481807050,0.55729465,69447.0,69398.0,0.014422]
[1770481807850,0.55729465,69442.0,69398.0,0.014422]
[1770481808161,0.55729465,69442.0,69397.0,0.00010811]
[1770481808752,0.55729465,69439.0,69397.0,0.00010811]
[1770481810256,0.55729465,69435.0,69397.0,0.00110811]
[1770481810865,0.43121955,69426.0,69397.0,0.00110811]
[1770481811763,0.43121955,69430.0,69411.0,0.00308735]
[1770481812062,0.43121955,69430.0,69411.0,0.00201351]
[1770481812965,0.43121955,69430.0,69420.0,0.00201351]
[1770481813166,0.43121955,69430.0,69397.0,0.00110811]
[1770481813361,0.43121955,69430.0,69397.0,0.00010811]
[1770481813563,0.43121955,69430.0,69411.0,0.001]
[1770481814063,0.43121955,69431.0,69411.0,0.001]
[1770481814257,0.43121955,69431.0,69420.0,0.001]
[1770481814458,0.43121955,69432.0,69420.0,0.001]
[1770481814863,0.43121955,69431.0,69420.0,0.001]
[1770481815365,0.43121955,69430.0,69420.0,0.001]
[1770481815554,0.00491868,69427.0,69420.0,0.001]
[1770481815755,0.55729465,69441.0,69401.0,0.014421]
[1770481815963,0.55729465,69448.0,69411.0,0.001]
[1770481816961,0.55729465,69451.0,69420.0,0.001]
[1770481817664,0.55729465,69457.0,69420.0,0.001]
[1770481818466,0.55729465,69461.0,69420.0,0.001]
[1770481818666,0.55729465,69461.0,69413.0,0.014419]
[1770481819475,0.55729465,69461.0,69420.0,0.001]
[1770481820079,0.55729465,69462.0,69413.0,0.014419]
[1770481820272,0.55729465,69462.0,69413.0,0.015419]
[1770481820772,0.55729465,69464.0,69413.0,0.015419]
[1770481821567,0.55729465,69450.0,69413.0,0.015419]
[1770481822076,0.55729465,69450.0,69420.0,0.001]
[1770481823475,0.55729465,69450.0,69413.0,0.015419]
[1770481823775,0.43040903,69441.0,69413.0,0.015419]
[1770481824772,0.43040903,69441.0,69413.0,0.014419]
[1770481824973,0.43040903,69441.0,69420.0,0.001]
[1770481825676,0.43040903,69441.0,69413.0,0.015419]
[1770481826672,0.43040903,69441.0,69420.0,0.001]
[1770481826879,0.43040903,69436.0,69420.0,0.0006695]
[1770481828176,0.43040903,69436.0,69413.0,0.015419]
[1770481828375,0.55729465,69445.0,69415.0,0.014418]
[1770481828582,0.69661831,69459.0,69431.0,0.014415]
[1770481829577,0.005,69489.0,69420.0,0.14550655]
[1770481829578,0.005,69489.0,69442.0,0.014413]
[1770481829782,0.80353871,69495.0,69460.0,0.28122247]
[1770481829984,0.80353871,69495.0,69460.0,0.22693393]
[1770481831683,0.014596,69525.0,69460.0,0.22693393]
[1770481832388,0.014396,69525.0,69460.0,0.22693393]
[1770481834287,0.014396,69523.0,69460.0,0.22693393]
[1770481836087,0.014397,69517.0,69460.0,0.22693393]
[1770481836487,0.21693656,69516.0,69460.0,0.22693393]
[1770481836988,0.014398,69514.0,69460.0,0.22693393]
[1770481837488,0.014399,69510.0,69460.0,0.22693393]
[1770481838693,0.014399,69510.0,69453.0,0.28718631]
[1770481838887,0.014399,69510.0,69434.0,0.014414]
[1770481839194,0.015399,69510.0,69434.0,0.014414]
[1770481840491,0.014399,69510.0,69434.0,0.014414]
[1770481840792,0.014401,69498.0,69447.0,0.29015025]
[1770481842094,0.014401,69498.0,69424.0,0.014416]
[1770481843185,0.014401,69498.0,69420.0,0.14550655]
[1770481843384,0.005,69502.0,69420.0,0.14550655]
[1770481843385,0.014403,69490.0,69420.0,0.14550655]
[1770481843893,0.014403,69490.0,69414.0,0.014418]
[1770481843894,0.014403,69490.0,69435.0,0.29440769]
[1770481846297,0.005,69487.0,69435.0,0.29440769]
[1770481847492,0.005,69483.0,69435.0,0.29440769]
[1770481848295,0.005,69483.0,69442.0,0.29188368]
[1770481851287,0.005,69496.0,69442.0,0.29188368]
[1770481853198,0.005,69496.0,69442.0,0.29288368]
[1770481853799,0.005,69496.0,69442.0,0.29188368]
[1770481854794,0.92972464,69524.0,69442.0,0.29188368]
[1770481854795,0.005,69503.0,69443.0,0.014412]
[1770481855393,0.005,69503.0,69450.0,0.15991755]
[1770481855599,0.005,69503.0,69457.0,0.01441]
[1770481855790,0.005,69510.0,69457.0,0.01441]
[1770481855990,0.005,69510.0,69460.0,0.014409]
[1770481856202,0.005,69522.0,69460.0,0.12968112]
[1770481856595,0.005,69522.0,69470.0,0.14550655]
[1770481856904,0.005,69506.0,69470.0,0.14550655]
[1770481857096,0.005,69516.0,69470.0,0.14550655]
[1770481857504,0.005,69521.0,69470.0,0.14550655]
[1770481857897,0.005,69526.0,69470.0,0.14550655]
[1770481858400,0.0636,69528.0,69470.0,0.14550655]
[1770481859603,0.005,69517.0,69470.0,0.14550655]
[1770481860398,0.005,69517.0,69462.0,0.11527212]
[1770481860597,0.005,69517.0,69461.0,0.11527212]
[1770481860802,0.005,69517.0,69462.0,0.33163048]
[1770481861003,0.005,69517.0,69462.0,0.11527212]
[1770481861198,0.005,69517.0,69454.0,0.01441]
[1770481861199,0.005,69517.0,69461.0,0.11527212]
[1770481861405,0.005,69517.0,69456.0,0.01441]
[1770481863509,0.005,69517.0,69450.0,0.14550655]
[1770481864207,0.005,69517.0,69453.0,0.01441]
[1770481864515,0.005,69511.0,69453.0,0.01441]
[1770481866513,0.005,69511.0,69465.0,0.014408]
[1770481866713,0.005,69522.0,69465.0,0.014408]
[1770481867017,0.005,69518.0,69465.0,0.014408]
[1770481867813,0.005,69518.0,69456.0,0.01441]
[1770481869202,0.005,69511.0,69456.0,0.01441]
[1770481874313,0.005,69507.0,69456.0,0.01441]
[1770481876718,0.005,69503.0,69456.0,0.01441]
[1770481877312,0.005,69480.0,69450.0,0.14550655]
[1770481877517,0.005,69480.0,69453.0,0.01441]
[1770481877713,0.005,69500.0,69453.0,0.01441]
[1770481879319,0.005,69500.0,69453.0,0.01541]
[1770481879916,0.005,69500.0,69453.0,0.25511]
[1770481880120,0.005,69491.0,69453.0,0.25411]
[1770481880320,0.005,69491.0,69453.0,0.25511]
[1770481881414,0.005,69491.0,69457.0,0.11527212]
[1770481882724,0.005,69491.0,69458.0,0.33164203]
[1770481882914,0.005,69491.0,69458.0,0.11527212]
[1770481883422,0.005,69491.0,69459.0,0.33164192]
[1770481883616,0.005,69491.0,69459.0,0.11527212]
[1770481884321,0.005,69491.0,69460.0,0.3316413]
[1770481884514,0.005,69491.0,69460.0,0.11527212]
[1770481885419,0.005,69491.0,69465.0,0.11527212]
[1770481885623,0.005,69491.0,69467.0,0.11527212]
[1770481885919,0.005,69507.0,69470.0,0.14529332]
[1770481886119,0.005,69507.0,69471.0,0.33161245]
[1770481886317,0.014394,69532.0,69470.0,0.14529332]
[1770481886318,0.005,69521.0,69470.0,0.26056544]
[1770481886624,0.005,69497.0,69471.0,0.33161241]
[1770481886924,0.005,69510.0,69471.0,0.11527212]
[1770481887117,0.005,69510.0,69472.0,0.33160287]
[1770481887312,0.005,69510.0,69471.0,0.11527212]
[1770481887822,0.005,69505.0,69471.0,0.11527212]
[1770481888925,0.005,69505.0,69471.0,0.11627212]
[1770481889320,0.005,69505.0,69471.0,0.001]
[1770481890429,0.005,69505.0,69473.0,0.11527212]
[1770481891230,0.005,69505.0,69474.0,0.33159673]
[1770481891422,0.005,69505.0,69471.0,0.11627212]
[1770481891727,0.005,69505.0,69473.0,0.001]
[1770481893327,0.005,69505.0,69471.0,0.11527212]
[1770481893328,0.005,69505.0,69472.0,0.12967812]
[1770481893533,0.005,69505.0,69474.0,0.001]
[1770481894232,0.005,69524.0,69473.0,0.001]
[1770481894527,0.005,69524.0,69474.0,0.014406]
[1770481895127,0.005,69524.0,69474.0,0.015406]
[1770481896732,0.005,69524.0,69474.0,0.014406]
[1770481897726,0.005,69524.0,69468.0,0.17251533]
[1770481897727,0.005,69524.0,69468.0,0.11527212]
[1770481898025,0.005,69524.0,69474.0,0.001]
[1770481900626,0.005,69524.0,69467.0,0.11527212]
[1770481901432,0.005,69524.0,69468.0,0.33160123]
[1770481901639,0.005,69524.0,69468.0,0.11527212]
[1770481902135,0.005,69524.0,69467.0,0.11527212]
[1770481903031,0.005,69524.0,69466.0,0.11527212]
[1770481903434,0.005,69524.0,69467.0,0.2397]
[1770481904136,0.71946918,69532.0,69467.0,0.2397]
[1770481904137,0.005,69520.0,69467.0,0.2397]
[1770481904629,0.005,69520.0,69466.0,0.2397]
[1770481904830,0.005,69520.0,69466.0,0.35497212]
[1770481905045,0.005,69520.0,69466.0,0.2397]
[1770481905246,0.005,69520.0,69467.0,0.014407]
[1770481905448,0.005,69520.0,69473.0,0.014406]
[1770481906150,0.005,69520.0,69473.0,0.12967812]
[1770481906343,0.005,69520.0,69473.0,0.014406]
[1770481906543,0.005,69525.0,69473.0,0.014406]
[1770481907149,0.005,69525.0,69473.0,0.12967812]
[1770481907849,0.005,69525.0,69473.0,0.014406]
[1770481908049,0.005,69525.0,69469.0,0.17251533]
[1770481908050,0.005,69525.0,69465.0,0.11527212]
[1770481908242,0.005,69525.0,69467.0,0.014407]
[1770481908649,0.005,69521.0,69467.0,0.014407]
[1770481909653,0.005,69517.0,69467.0,0.014407]
[1770481911951,0.71946918,69513.0,69467.0,0.014407]
[1770481913356,0.71946918,69513.0,69457.0,0.014409]
[1770481913761,0.014401,69500.0,69442.0,0.29188368]
[1770481914148,0.005,69491.0,69442.0,0.29188368]
[1770481914462,0.71946918,69482.0,69442.0,0.29188368]
[1770481915558,0.71946918,69483.0,69442.0,0.29188368]
[1770481916958,0.71946918,69488.0,69442.0,0.29188368]
[1770481917956,0.71946918,69482.0,69442.0,0.29288368]
[1770481919354,0.71946918,69482.0,69442.0,0.29188368]
[1770481920360,0.71946918,69483.0,69442.0,0.29188368]
[1770481921763,0.014403,69490.0,69442.0,0.29188368]
[1770481921958,0.005,69486.0,69442.0,0.29188368]
[1770481922557,0.86274364,69491.0,69442.0,0.29188368]
[1770481923155,0.005,69491.0,69442.0,0.29188368]
[1770481925061,0.005,69481.0,69442.0,0.29188368]
[1770481925966,0.005,69481.0,69442.0,0.28688368]
[1770481926265,0.005,69491.0,69442.0,0.28688368]
[1770481926465,0.005,69480.0,69442.0,0.28688368]
[1770481927362,0.005,69490.0,69442.0,0.28688368]
[1770481927968,0.005,69490.0,69411.0,0.0002]
[1770481927969,0.2295978,69489.0,69411.0,0.0002]
[1770481928157,0.57213506,69482.0,69411.0,0.0002]
[1770481929067,0.57213506,69482.0,69410.0,0.14529332]
[1770481929269,0.57213506,69482.0,69410.0,0.79711769]
[1770481929568,0.57313506,69482.0,69410.0,0.79711769]
[1770481929758,0.001,69482.0,69410.0,0.79711769]
[1770481930268,0.57213506,69483.0,69410.0,0.79711769]
[1770481930470,0.57213506,69483.0,69410.0,0.14529332]
[1770481930767,0.57213506,69485.0,69410.0,0.14529332]
[1770481931171,0.21706546,69484.0,69395.0,0.11494782]
[1770481931362,0.21706546,69484.0,69390.0,0.26024114]
[1770481931569,0.21706546,69484.0,69390.0,0.25534925]
[1770481931570,0.57213506,69476.0,69390.0,0.25534925]
[1770481932569,0.014407,69471.0,69400.0,0.014421]
[1770481933372,0.014407,69471.0,69426.0,0.2854242]
[1770481933866,0.014407,69471.0,69419.0,0.28790339]
[1770481934464,0.57213506,69477.0,69426.0,0.28588545]
[1770481934672,0.005,69481.0,69426.0,0.28588545]
[1770481935059,0.57213506,69487.0,69426.0,0.28588545]
[1770481935473,0.005,69490.0,69427.0,0.014416]
[1770481935669,0.57213506,69498.0,69427.0,0.014416]
[1770481935876,0.57213506,69498.0,69426.0,0.28588545]
[1770481935877,0.57213506,69498.0,69436.0,0.014414]
[1770481936266,0.005,69504.0,69436.0,0.014414]
[1770481936764,0.57213506,69506.0,69436.0,0.014414]
[1770481937168,0.71946918,69514.0,69448.0,0.014411]
[1770481937372,0.57213506,69516.0,69448.0,0.014411]
[1770481937876,0.005,69518.0,69452.0,0.01441]
[1770481938173,0.014397,69517.0,69452.0,0.01441]
[1770481938673,0.001,69506.0,69452.0,0.01441]
[1770481939775,0.014397,69517.0,69452.0,0.01441]
[1770481940878,0.57713506,69518.0,69452.0,0.01441]
[1770481941266,0.005,69511.0,69443.0,0.014412]
[1770481941466,0.014399,69510.0,69433.0,0.12936182]
[1770481941668,0.014399,69508.0,69433.0,0.014414]
[1770481942072,0.57213506,69503.0,69433.0,0.014414]
[1770481942869,0.57213506,69502.0,69433.0,0.014414]
[1770481943576,0.57213506,69500.0,69433.0,0.014414]
[1770481945078,0.57213506,69499.0,69433.0,0.014414]
[1770481945970,0.57213506,69496.0,69433.0,0.014414]
[1770481946976,0.005,69495.0,69433.0,0.014414]
[1770481947175,0.005,69495.0,69445.0,0.014412]
[1770481947578,0.005,69499.0,69445.0,0.014412]
[1770481950880,0.005,69499.0,69452.0,0.014411]
[1770481952683,0.005,69499.0,69452.0,0.015411]
[1770481953973,0.005,69509.0,69452.0,0.015411]
[1770481954374,0.005,69509.0,69452.0,0.014411]
[1770481954779,0.005,69501.0,69452.0,0.014411]
[1770481955081,0.005,69511.0,69452.0,0.014411]
[1770481955878,0.005,69503.0,69452.0,0.014411]
[1770481956879,0.005,69499.0,69452.0,0.014411]
[1770481957079,0.005,69499.0,69442.0,0.014412]
[1770481958280,0.005,69499.0,69452.0,0.001]
[1770481958884,0.005,69499.0,69442.0,0.014412]
[1770481959681,0.005,69499.0,69433.0,0.1145361]
[1770481959682,0.005,69499.0,69433.0,0.014414]
[1770481961187,0.57213506,69502.0,69433.0,0.014414]
[1770481962283,0.57213506,69492.0,69433.0,0.014414]
[1770481962987,0.57213506,69490.0,69433.0,0.014414]
[1770481963689,0.57213506,69489.0,69433.0,0.014414]
[1770481964283,0.57213506,69489.0,69445.0,0.014412]
[1770481964590,0.57213506,69492.0,69445.0,0.014412]
[1770481965394,0.57213506,69497.0,69452.0,0.014411]
[1770481966294,0.57213506,69500.0,69452.0,0.014411]
[1770481966686,0.57213506,69500.0,69452.0,0.015411]
[1770481966886,0.57213506,69502.0,69452.0,0.015411]
[1770481967783,0.57213506,69503.0,69452.0,0.015411]
[1770481967980,0.57213506,69503.0,69464.0,0.014408]
[1770481968494,0.57213506,69507.0,69464.0,0.014408]
[1770481969507,0.57213506,69509.0,69464.0,0.014408]
[1770481970104,0.57213506,69509.0,69498.0,0.28112559]
[1770481970306,0.57213506,69509.0,69491.0,0.28279587]
[1770481970502,0.57213506,69509.0,69498.0,0.29405505]
[1770481970809,0.005,69518.0,69498.0,0.29405505]
[1770481971003,0.57113506,69526.0,69498.0,0.29405505]
[1770481971508,0.85774364,69528.0,69498.0,0.29405505]
[1770481972413,0.005,69547.0,69498.0,0.29405505]
[1770481972804,0.005,69551.0,69499.0,0.014401]
[1770481973212,0.005,69555.0,69499.0,0.014401]
[1770481973417,0.005,69565.0,69499.0,0.014401]
[1770481973811,0.005,69573.0,69507.0,0.014399]
[1770481974111,0.22175123,69573.0,69507.0,0.014399]
[1770481974705,0.0002,69563.0,69507.0,0.014399]
[1770481976014,0.014384,69579.0,69507.0,0.014399]
[1770481976213,0.001,69563.0,69507.0,0.014399]
[1770481978715,0.015384,69579.0,69507.0,0.014399]
[1770481979118,0.21506943,69578.0,69507.0,0.014399]
[1770481979316,0.0002,69559.0,69507.0,0.014399]
[1770481980415,0.001,69563.0,69507.0,0.014399]
[1770481981110,0.21506943,69578.0,69507.0,0.014399]
[1770481981510,0.0002,69563.0,69498.0,0.30845605]
[1770481982719,0.58449326,69567.0,69498.0,0.30845605]
[1770481983615,0.58449326,69567.0,69498.0,0.29405505]
[1770481984116,0.57010626,69561.0,69498.0,0.29405505]
[1770481985414,0.014389,69559.0,69498.0,0.29405505]
[1770481985717,0.57010626,69554.0,69498.0,0.29405505]
[1770481986219,0.01439,69552.0,69498.0,0.29405505]
[1770481986609,0.71946918,69556.0,69504.0,0.0144]
[1770481987215,0.71946918,69556.0,69498.0,0.29405505]
[1770481987513,0.71946918,69556.0,69499.0,0.014401]
[1770481987919,0.0002,69558.0,69499.0,0.014401]
[1770481988114,0.57010626,69564.0,69512.0,0.014398]
[1770481988423,0.001,69552.0,69512.0,0.014398]
[1770481988814,0.001,69552.0,69502.0,0.0144]
[1770481989214,0.005,69565.0,69502.0,0.0144]
[1770481989519,0.57010626,69572.0,69502.0,0.0144]
[1770481990421,0.0002,69554.0,69502.0,0.0144]
[1770481991519,0.014386,69573.0,69502.0,0.0144]
[1770481992416,0.71946918,69577.0,69527.0,0.014395]
[1770481992622,0.005,69578.0,69530.0,0.014394]
[1770481992814,0.0002,69581.0,69566.0,0.2922432]
[1770481993414,0.0002,69576.0,69566.0,0.2922432]
[1770481993614,0.0002,69576.0,69530.0,0.014394]
[1770481994411,0.0002,69572.0,69530.0,0.014394]
[1770481995316,0.0002,69572.0,69530.0,0.015394]
[1770481995509,0.0002,69569.0,69530.0,0.015394]
[1770481995910,0.0002,69569.0,69538.0,0.014393]
[1770481996422,0.0002,69569.0,69562.0,0.29234675]
[1770481996623,0.014379,69604.0,69562.0,0.29234675]
[1770481997329,0.57010626,69609.0,69562.0,0.29234675]
[1770481997626,0.014377,69614.0,69562.0,0.29234675]
[1770481998018,0.21646236,69613.0,69562.0,0.29234675]
[1770481998214,0.57010626,69615.0,69562.0,0.29234675]
[1770481998415,0.71946918,69622.0,69562.0,0.29234675]
[1770481998619,0.001,69609.0,69562.0,0.29234675]
[1770481999422,0.014379,69607.0,69562.0,0.29234675]
[1770481999628,0.014379,69607.0,69555.0,0.28992995]
[1770481999828,0.014381,69595.0,69555.0,0.28992995]
[1770482000129,0.014381,69595.0,69521.0,0.1145361]
[1770482000319,0.014381,69595.0,69520.0,0.014396]
[1770482000521,0.071912,69590.0,69539.0,0.28539242]
[1770482000829,0.014386,69573.0,69526.0,0.2876331]
[1770482001531,0.57010626,69562.0,69526.0,0.2876331]
[1770482001729,0.0002,69551.0,69526.0,0.2876331]
[1770482002031,0.57010626,69562.0,69526.0,0.2876331]
[1770482002920,0.57010626,69562.0,69500.0,0.15975632]
[1770482003117,0.57010626,69561.0,69500.0,0.15975632]
[1770482003321,0.57010626,69561.0,69500.0,0.0144]
[1770482003931,0.57010626,69561.0,69526.0,0.001]
[1770482004130,0.57010626,69561.0,69531.0,0.29138295]
[1770482004630,0.71946918,69569.0,69531.0,0.29138295]
[1770482004821,0.57010626,69576.0,69531.0,0.29138295]
[1770482005221,0.0002,69556.0,69531.0,0.29138295]
[1770482006223,0.57010626,69572.0,69531.0,0.29138295]
[1770482006529,0.57010626,69572.0,69524.0,0.28136702]